bitfinex/quotes_BTCUSD_20241002
["timestamp","ask_amount","ask_price","bid_price","bid_amount"]
[1727876669821,0.000817,60869.0,60868.0,0.62064153]
[1727876670050,0.000817,60869.0,60868.0,0.73964153]
[1727876670277,0.000817,60869.0,60868.0,0.178289]
[1727876670506,0.000817,60869.0,60868.0,0.192289]
[1727876670999,0.000817,60869.0,60868.0,0.014]
[1727876671218,0.000817,60869.0,60868.0,0.192289]
[1727876671433,0.000817,60869.0,60868.0,0.178289]
[1727876671859,0.000817,60869.0,60868.0,0.183289]
[1727876672353,0.000817,60869.0,60868.0,0.178289]
[1727876672581,0.000817,60869.0,60868.0,0.171289]
[1727876672797,0.000817,60869.0,60868.0,0.204299]
[1727876673027,0.000817,60869.0,60868.0,0.218299]
[1727876673245,0.000817,60869.0,60868.0,0.197299]
[1727876673467,0.000817,60869.0,60868.0,0.211299]
[1727876673711,0.000817,60869.0,60868.0,0.63982634]
[1727876674174,0.000817,60869.0,60868.0,0.65382634]
[1727876674402,0.000817,60869.0,60868.0,0.63982634]
[1727876674626,0.000817,60869.0,60868.0,0.197299]
[1727876674908,0.000817,60869.0,60868.0,0.176289]
[1727876675112,0.165104,60869.0,60868.0,0.012]
[1727876675341,0.165104,60869.0,60853.0,0.328659]
[1727876675342,0.164315,60859.0,60853.0,0.328659]
[1727876675559,0.164305,60863.0,60859.0,0.164311]
[1727876675774,0.164301,60864.0,60863.0,0.001634]
[1727876675988,0.328585,60867.0,60863.0,0.001634]
[1727876676263,0.000817,60869.0,60868.0,0.009]
[1727876676479,0.000817,60869.0,60868.0,0.164289]
[1727876676692,0.02657677,60869.0,60868.0,0.164289]
[1727876677586,0.02657677,60869.0,60863.0,0.001634]
[1727876677809,0.1643,60864.0,60863.0,0.001634]
[1727876678033,0.328585,60867.0,60863.0,0.001634]
[1727876678269,0.1643,60864.0,60863.0,0.004634]
[1727876678493,0.2403,60864.0,60863.0,0.004634]
[1727876678938,0.164338,60850.0,60849.0,0.065864]
[1727876679170,0.1923,60863.0,60839.0,0.328735]
[1727876679171,0.328641,60857.0,60839.0,0.328735]
[1727876679404,0.44252734,60855.0,60840.0,0.00328671]
[1727876679619,0.44252734,60855.0,60822.0,0.005]
[1727876679620,0.02576764,60853.0,60832.0,0.164387]
[1727876679838,0.02576764,60853.0,60827.0,0.065887]
[1727876679839,0.164376,60836.0,60831.0,0.164387]
[1727876680106,0.164376,60836.0,60822.0,0.005]
[1727876680107,0.328725,60841.0,60830.0,0.328782]
[1727876680325,0.164373,60837.0,60832.0,0.164384]
[1727876680993,0.02577164,60837.0,60833.0,0.164382]
[1727876681218,0.02577164,60837.0,60832.0,0.328772]
[1727876681472,0.19014564,60837.0,60833.0,0.164383]
[1727876681947,0.164377,60836.0,60831.0,0.197397]
[1727876682158,0.164377,60836.0,60833.0,0.011]
[1727876682379,0.02577164,60837.0,60833.0,0.011]
[1727876682618,0.02577164,60837.0,60836.0,0.164376]
[1727876682852,0.355,60878.0,60837.0,0.023]
[1727876682853,0.07327328,60855.0,60837.0,0.023]
[1727876683073,0.164326,60855.0,60841.0,0.44252734]
[1727876683300,0.07327328,60856.0,60841.0,0.44252734]
[1727876683519,0.07327328,60857.0,60846.0,0.164347]
[1727876683743,0.07327328,60857.0,60839.0,0.023]
[1727876684010,0.07327328,60858.0,60854.0,0.164326]
[1727876684222,0.07327328,60859.0,60848.0,0.03301]
[1727876684432,0.164323,60856.0,60851.0,0.164335]
[1727876684654,0.07327328,60859.0,60848.0,0.03301]
[1727876684871,0.07327328,60860.0,60850.0,0.03301]
[1727876685089,0.42631471,60862.0,60850.0,0.03301]
[1727876685090,0.164318,60858.0,60854.0,0.164325]
[1727876685341,0.006,60855.0,60849.0,0.16434]
[1727876685558,0.164328,60854.0,60850.0,0.164335]
[1727876686018,0.16433,60853.0,60849.0,0.164339]
[1727876686245,0.07416275,60859.0,60847.0,0.328691]
[1727876686465,0.164323,60856.0,60848.0,0.328685]
[1727876686681,0.164328,60854.0,60849.0,0.178338]
[1727876686898,0.164328,60854.0,60850.0,0.004]
[1727876687124,0.328644,60856.0,60850.0,0.004]
[1727876687561,0.07316275,60858.0,60850.0,0.004]
[1727876687779,0.164335,60851.0,60850.0,0.004]
[1727876688249,0.07316275,60853.0,60850.0,0.004]
[1727876688521,0.164333,60852.0,60849.0,0.011]
[1727876688755,0.164338,60850.0,60849.0,0.011]
[1727876689457,0.164352,60845.0,60839.0,0.164366]
[1727876689691,0.328698,60846.0,60838.0,0.03301]
[1727876689909,0.328698,60846.0,60840.0,0.164365]
[1727876690134,0.164349,60847.0,60841.0,0.164362]
[1727876690450,0.164338,60850.0,60849.0,0.014]
[1727876690709,0.164376,60836.0,60830.0,0.03301]
[1727876690944,0.09771054,60846.0,60838.0,0.01]
[1727876691163,0.164382,60834.0,60830.0,0.03301]
[1727876691371,0.164378,60836.0,60831.0,0.03301]
[1727876691592,0.12213818,60844.0,60831.0,0.03301]
[1727876691593,0.09771054,60845.0,60831.0,0.03301]
[1727876691841,0.328744,60838.0,60831.0,0.03301]
[1727876692062,0.164373,60837.0,60833.0,0.164383]
[1727876692514,0.328742,60838.0,60832.0,0.164387]
[1727876692735,0.09771054,60842.0,60823.0,0.03301]
[1727876692957,0.2465671,60849.0,60830.0,0.014]
[1727876692958,0.328731,60840.0,60830.0,0.014]
[1727876693220,0.164382,60834.0,60831.0,0.011]
[1727876693454,0.164377,60836.0,60832.0,0.164387]
[1727876693671,0.164377,60836.0,60833.0,0.014]
[1727876693884,0.001,60838.0,60834.0,0.164381]
[1727876693885,0.165371,60838.0,60834.0,0.164381]
[1727876694092,0.001,60838.0,60835.0,0.164376]
[1727876694329,0.001,60838.0,60833.0,0.03301]
[1727876694531,0.001,60838.0,60835.0,0.164377]
[1727876694795,0.164368,60839.0,60835.0,0.164377]
[1727876695023,0.328734,60840.0,60833.0,0.03301]
[1727876695247,0.09771054,60841.0,60833.0,0.197394]
[1727876695248,0.164374,60837.0,60833.0,0.197394]
[1727876695473,0.42644854,60839.0,60830.0,0.329782]
[1727876695705,0.164373,60837.0,60833.0,0.164383]
[1727876695923,0.164373,60837.0,60835.0,0.170377]
[1727876695924,0.02577168,60837.0,60835.0,0.170377]
[1727876696174,0.02577168,60837.0,60835.0,0.006]
[1727876696406,0.02577168,60837.0,60835.0,0.164377]
[1727876696626,0.02577168,60837.0,60834.0,0.164379]
[1727876696850,0.02577168,60837.0,60835.0,0.164377]
[1727876697087,0.02577168,60837.0,60835.0,0.178377]
[1727876697319,0.12348222,60837.0,60835.0,0.014]
[1727876697537,0.09771054,60836.0,60835.0,0.014]
[1727876697769,0.26208654,60836.0,60835.0,0.014]
[1727876698239,0.02577168,60837.0,60835.0,0.014]
[1727876698240,0.12348222,60837.0,60835.0,0.014]
[1727876698458,0.19114668,60837.0,60835.0,0.021]
[1727876698687,0.02677168,60837.0,60835.0,0.021]
[1727876698908,0.02577168,60837.0,60835.0,0.014]
[1727876699133,0.164376,60836.0,60835.0,0.014]
[1727876699407,0.165376,60836.0,60835.0,0.022]
[1727876699624,0.165376,60836.0,60835.0,0.008]
[1727876699849,0.49313,60836.0,60835.0,0.014]
[1727876700080,0.49313,60836.0,60835.0,0.021]
[1727876700564,0.49288469,60836.0,60835.0,0.021]
[1727876701480,0.49288469,60836.0,60835.0,0.014]
[1727876701707,0.59190498,60836.0,60835.0,0.022]
[1727876701923,0.001,60836.0,60835.0,0.188379]
[1727876702155,0.09802548,60841.0,60835.0,0.04701]
[1727876702390,0.09804937,60843.0,60842.0,0.20237]
[1727876702621,0.09804937,60846.0,60845.0,0.197362]
[1727876702847,0.09804937,60848.0,60830.0,0.089]
[1727876703084,0.09804937,60847.0,60843.0,0.164356]
[1727876703304,0.12252493,60848.0,60835.0,0.014]
[1727876703305,0.001,60841.0,60835.0,0.014]
[1727876703533,0.001,60841.0,60836.0,0.328752]
[1727876703833,0.164365,60840.0,60835.0,0.178376]
[1727876704027,0.001,60841.0,60835.0,0.178376]
[1727876704028,0.164376,60836.0,60835.0,0.014]
[1727876704272,0.42777537,60841.0,60835.0,0.014]
[1727876704273,0.26241837,60839.0,60835.0,0.014]
[1727876704508,0.164376,60836.0,60835.0,0.014]
[1727876705178,0.164381,60834.0,60833.0,0.001634]
[1727876705394,0.344081,60834.0,60833.0,0.001634]
[1727876705618,0.264381,60834.0,60833.0,0.001634]
[1727876705864,0.09804937,60846.0,60833.0,0.001634]
[1727876706079,0.164353,60845.0,60840.0,0.164364]
[1727876706295,0.1,60847.0,60838.0,0.03301]
[1727876706520,0.1,60847.0,60846.0,0.164349]
[1727876706751,0.09804937,60857.0,60841.0,0.00328655]
[1727876707004,0.000817,60860.0,60853.0,0.03301]
[1727876707005,0.09886637,60860.0,60853.0,0.03301]
[1727876707306,0.09886637,60860.0,60841.0,0.20778655]
[1727876707307,0.000817,60860.0,60859.0,0.197324]
[1727876707801,0.000817,60860.0,60859.0,0.393824]
[1727876708030,0.000817,60869.0,60868.0,0.225299]
[1727876708258,0.000817,60869.0,60868.0,0.498799]
[1727876708694,0.000817,60869.0,60868.0,0.500799]
[1727876708925,0.09809526,60883.0,60874.0,0.575783]
[1727876709146,0.09809526,60888.0,60874.0,0.85640285]
[1727876709370,0.12271908,60890.0,60874.0,0.85640285]
[1727876709371,0.09809526,60889.0,60874.0,0.85640285]
[1727876709601,0.0001,60890.0,60878.0,0.227272]
[1727876709827,0.0001,60890.0,60876.0,0.428531]
[1727876709828,0.0001,60890.0,60886.0,0.327251]
[1727876710311,0.0001,60890.0,60886.0,0.325251]
[1727876710582,0.0001,60890.0,60886.0,0.302251]
[1727876710808,0.0001,60890.0,60886.0,0.32655532]
[1727876711029,0.0001,60890.0,60886.0,0.7673101]
[1727876711259,0.0001,60890.0,60886.0,0.7693101]
[1727876711957,0.0001,60890.0,60886.0,0.7743101]
[1727876712211,0.0001,60890.0,60889.0,0.232243]
[1727876712433,0.0001,60890.0,60889.0,0.403443]
[1727876712890,0.0002,60899.0,60898.0,0.04001]
[1727876713120,0.0002,60899.0,60898.0,0.508619]
[1727876713573,0.0002,60899.0,60898.0,0.9506781]
[1727876714271,0.0002,60899.0,60898.0,0.7692781]
[1727876714507,0.0002,60899.0,60898.0,0.7952781]
[1727876714804,0.0002,60899.0,60898.0,0.7972781]
[1727876715591,0.0002,60899.0,60898.0,0.225219]
[1727876715828,0.0002,60899.0,60898.0,0.197219]
[1727876716180,0.0002,60899.0,60898.0,0.225219]
[1727876716415,0.0002,60899.0,60898.0,0.6532781]
[1727876716645,0.0002,60899.0,60898.0,0.6392781]
[1727876716867,0.0002,60899.0,60898.0,0.6762781]
[1727876717068,0.0002,60899.0,60898.0,0.197219]
[1727876717311,0.0002,60899.0,60898.0,0.178209]
[1727876717530,0.0002,60899.0,60898.0,0.192209]
[1727876718184,0.0002,60899.0,60898.0,0.312319]
[1727876718402,0.0002,60899.0,60898.0,0.7543781]
[1727876718664,0.0002,60899.0,60898.0,0.8793781]
[1727876718844,0.0002,60899.0,60898.0,0.8653781]
[1727876719552,0.0002,60919.0,60918.0,0.164155]
[1727876719762,0.0002,60919.0,60918.0,0.64250663]
[1727876720017,0.0002,60919.0,60918.0,0.6392241]
[1727876720465,0.0002,60919.0,60918.0,0.197165]
[1727876720688,0.0002,60919.0,60918.0,0.208165]
[1727876722192,0.0002,60919.0,60918.0,0.211165]
[1727876722387,0.164352,60919.0,60918.0,0.028]
[1727876722612,0.164352,60919.0,60918.0,0.014]
[1727876723271,0.164173,60912.0,60908.0,0.164181]
[1727876723494,0.164178,60910.0,60906.0,0.03301]
[1727876723700,0.164352,60919.0,60918.0,0.011]
[1727876724144,0.164352,60919.0,60918.0,0.169155]
[1727876724145,0.0259351,60919.0,60918.0,0.169155]
[1727876724579,0.0259351,60919.0,60918.0,0.202165]
[1727876724786,0.0267521,60919.0,60918.0,0.202165]
[1727876724993,0.000817,60921.0,60920.0,0.03301]
[1727876725203,0.328299,60920.0,60918.0,0.005]
[1727876725411,0.164152,60919.0,60918.0,0.005]
[1727876725628,0.164174,60911.0,60908.0,0.03801]
[1727876725839,0.328326,60915.0,60908.0,0.005]
[1727876726053,0.328299,60920.0,60906.0,0.014]
[1727876726274,0.000817,60921.0,60899.0,0.328411]
[1727876726553,0.328367,60908.0,60901.0,0.1642]
[1727876726767,0.328345,60912.0,60905.0,0.197197]
[1727876727002,0.328345,60912.0,60890.0,0.480634]
[1727876727003,0.164162,60916.0,60907.0,0.4420591]
[1727876727222,0.4763,60920.0,60909.0,0.164178]
[1727876727445,0.1,60919.0,60906.0,0.003]
[1727876727660,0.3617,60919.0,60906.0,0.003]
[1727876728091,0.32833,60915.0,60906.0,0.003]
[1727876728293,0.164166,60914.0,60909.0,0.164179]
[1727876728503,0.164173,60912.0,60906.0,0.003]
[1727876728728,0.164173,60912.0,60893.0,0.002]
[1727876728729,0.2617,60919.0,60905.0,0.328375]
[1727876728938,0.4763,60920.0,60905.0,0.011]
[1727876729154,0.164175,60911.0,60907.0,0.164183]
[1727876729368,0.4763,60920.0,60905.0,0.011]
[1727876729569,0.164171,60912.0,60906.0,0.32837]
[1727876729774,0.4763,60920.0,60919.0,0.164152]
[1727876729989,0.000817,60921.0,60906.0,0.007]
[1727876730236,0.328318,60917.0,60912.0,0.164169]
[1727876730428,0.328308,60919.0,60909.0,0.328357]
[1727876730632,0.164163,60915.0,60910.0,0.164175]
[1727876730875,0.164163,60915.0,60911.0,0.197182]
[1727876731087,0.000817,60921.0,60909.0,0.4420591]
[1727876731289,0.000817,60921.0,60913.0,0.328335]
[1727876731490,0.3283,60920.0,60914.0,0.164164]
[1727876731712,0.35403471,60920.0,60913.0,0.328335]
[1727876731926,0.35403471,60920.0,60914.0,0.32833]
[1727876731927,0.02573471,60920.0,60914.0,0.32833]
[1727876732152,0.18988471,60920.0,60905.0,0.004]
[1727876732358,0.02573471,60920.0,60905.0,0.004]
[1727876732566,0.02573471,60920.0,60916.0,0.32832]
[1727876732806,0.02573471,60920.0,60919.0,0.197162]
[1727876733008,0.02573471,60920.0,60919.0,0.164152]
[1727876733419,0.000817,60921.0,60916.0,0.32832]
[1727876733621,0.000817,60921.0,60920.0,0.164149]
[1727876733831,0.000817,60921.0,60920.0,0.197159]
[1727876736140,0.000817,60921.0,60920.0,0.211159]
[1727876736346,0.000817,60921.0,60920.0,0.5051916]
[1727876736557,0.000817,60921.0,60920.0,0.5071916]
[1727876736781,0.000817,60921.0,60920.0,0.4911916]
[1727876736984,0.000817,60921.0,60920.0,0.5961916]
[1727876737191,0.000817,60921.0,60920.0,0.6081916]
[1727876737398,0.000817,60921.0,60920.0,0.7816916]
[1727876737817,0.000817,60921.0,60920.0,0.7956916]
[1727876738225,0.000817,60921.0,60920.0,0.8206916]
[1727876738443,0.0002,60939.0,60938.0,0.197111]
[1727876738657,0.164067,60951.0,60944.0,0.164084]
[1727876738866,0.0002,60959.0,60947.0,0.03301]
[1727876739082,0.328114,60955.0,60947.0,0.03301]
[1727876739295,0.328107,60956.0,60949.0,0.03301]
[1727876739506,0.328107,60956.0,60934.0,0.0815]
[1727876739507,0.164074,60948.0,60946.0,0.03301]
[1727876739724,0.328097,60958.0,60933.0,0.328224]
[1727876739937,0.164085,60944.0,60933.0,0.328224]
[1727876740157,0.328163,60946.0,60933.0,0.328224]
[1727876740368,0.328127,60952.0,60943.0,0.164086]
[1727876740588,0.328134,60951.0,60934.0,0.03301]
[1727876740795,0.328097,60958.0,60941.0,0.03301]
[1727876740796,0.16408,60946.0,60941.0,0.03301]
[1727876741012,0.164077,60947.0,60942.0,0.164089]
[1727876741232,0.164077,60947.0,60934.0,0.328219]
[1727876741233,0.328128,60952.0,60939.0,0.656388]
[1727876741476,0.16408,60946.0,60929.0,0.005]
[1727876741761,0.328066,60964.0,60944.0,0.164084]
[1727876741762,0.02572112,60949.0,60944.0,0.164084]
[1727876741980,0.02572112,60949.0,60935.0,0.2800326]
[1727876742228,0.328161,60946.0,60938.0,0.328198]
[1727876742445,0.02572112,60949.0,60925.0,0.0787]
[1727876742446,0.02572112,60949.0,60946.0,0.012]
[1727876742672,0.782933,60947.0,60946.0,0.012]
[1727876743595,0.164098,60939.0,60938.0,0.03301]
[1727876744240,0.18982437,60939.0,60938.0,0.03301]
[1727876744445,0.18982437,60939.0,60932.0,0.164116]
[1727876744446,0.164108,60936.0,60932.0,0.197126]
[1727876744664,0.164117,60932.0,60928.0,0.164127]
[1727876744876,0.164112,60934.0,60928.0,0.328251]
[1727876745098,0.164117,60932.0,60928.0,0.164127]
[1727876745328,0.164117,60932.0,60914.0,0.005]
[1727876745329,0.023,60938.0,60921.0,0.164145]
[1727876745581,0.32825,60929.0,60919.0,0.3283]
[1727876745790,0.32825,60929.0,60916.0,0.32832]
[1727876745791,0.164129,60928.0,60923.0,0.16414]
[1727876746030,0.02573046,60934.0,60925.0,0.164133]
[1727876746031,0.164122,60930.0,60925.0,0.164133]
[1727876746258,0.164121,60931.0,60926.0,0.164132]
[1727876746504,0.164149,60921.0,60917.0,0.164156]
[1727876746717,0.023,60942.0,60919.0,0.014]
[1727876746718,0.164149,60920.0,60919.0,0.014]
[1727876746932,0.328323,60916.0,60909.0,0.328356]
[1727876747151,0.328323,60916.0,60897.0,0.404918]
[1727876747152,0.164177,60910.0,60897.0,0.0765]
[1727876747371,0.164169,60913.0,60907.0,0.164183]
[1727876747573,0.164169,60913.0,60898.0,0.005]
[1727876747574,0.275,60931.0,60898.0,0.005]
[1727876747786,0.123,60930.0,60902.0,0.065806]
[1727876748007,0.164148,60921.0,60918.0,0.164154]
[1727876748224,0.164148,60921.0,60898.0,0.005]
[1727876748225,0.328288,60922.0,60915.0,0.164162]
[1727876748442,0.02573545,60923.0,60905.0,0.03301]
[1727876748665,0.164157,60918.0,60914.0,0.197173]
[1727876748887,0.02573545,60923.0,60902.0,0.065806]
[1727876749107,0.164152,60919.0,60902.0,0.065806]
[1727876749345,0.164153,60919.0,60914.0,0.164164]
[1727876749557,0.328264,60927.0,60915.0,0.03301]
[1727876749761,0.328264,60927.0,60912.0,0.16417]
[1727876749762,0.164161,60916.0,60912.0,0.16417]
[1727876750010,0.16415,60920.0,60912.0,0.001636]
[1727876750224,0.02573474,60916.0,60912.0,0.001636]
[1727876750437,0.02573474,60916.0,60912.0,0.165806]
[1727876750657,0.164168,60914.0,60912.0,0.001636]
[1727876750891,0.02573474,60916.0,60912.0,0.001636]
[1727876751110,0.18989674,60916.0,60912.0,0.001636]
[1727876751325,0.328332,60914.0,60912.0,0.001636]
[1727876751537,0.02573474,60916.0,60912.0,0.001636]
[1727876751741,0.164168,60913.0,60912.0,0.001636]
[1727876752149,0.242768,60913.0,60912.0,0.015636]
[1727876752814,0.242768,60913.0,60912.0,0.027636]
[1727876753038,0.365768,60913.0,60912.0,0.027636]
[1727876753294,0.365768,60913.0,60912.0,0.013636]
[1727876753508,0.365768,60913.0,60912.0,0.001636]
[1727876753736,0.365768,60913.0,60912.0,0.016636]
[1727876754015,0.365768,60913.0,60912.0,0.002636]
[1727876754246,0.023,60912.0,60890.0,0.001634]
[1727876754466,0.123,60912.0,60890.0,0.001634]
[1727876754909,0.02574242,60907.0,60891.0,0.164225]
[1727876755123,0.328433,60896.0,60891.0,0.197236]
[1727876755343,0.164224,60893.0,60890.0,0.165863]
[1727876755557,0.164214,60896.0,60891.0,0.328453]
[1727876755778,0.02574242,60907.0,60890.0,0.001634]
[1727876755988,0.0786,60913.0,60893.0,0.03301]
[1727876755989,0.023,60911.0,60893.0,0.03301]
[1727876756201,0.164209,60898.0,60894.0,0.164218]
[1727876756411,0.328415,60899.0,60891.0,0.37660883]
[1727876756412,0.164212,60897.0,60891.0,0.37660883]
[1727876756631,0.492636,60897.0,60890.0,0.04979083]
[1727876756860,0.02574362,60903.0,60891.0,0.04815683]
[1727876757109,0.02574362,60903.0,60895.0,0.03301]
[1727876757318,0.02574362,60903.0,60896.0,0.164211]
[1727876757319,0.164204,60900.0,60896.0,0.164211]
[1727876757620,0.02574362,60903.0,60902.0,0.164198]
[1727876757824,0.02574362,60903.0,60902.0,0.197208]
[1727876758270,0.02574362,60903.0,60902.0,0.164198]
[1727876758489,0.164196,60903.0,60902.0,0.09766665]
[1727876758701,0.328299,60921.0,60903.0,0.164195]
[1727876758915,0.199,60925.0,60901.0,0.04885884]
[1727876758916,0.164198,60902.0,60901.0,0.04885884]
[1727876759173,0.199,60925.0,60902.0,0.014]
[1727876759174,0.164195,60903.0,60902.0,0.014]
[1727876759398,0.164201,60901.0,60897.0,0.21306982]
[1727876759692,0.164209,60898.0,60897.0,0.04885982]
[1727876759898,0.10234172,60910.0,60896.0,0.04888044]
[1727876759899,0.328399,60902.0,60896.0,0.04888044]
[1727876760115,0.328409,60900.0,60896.0,0.04888044]
[1727876760325,0.164209,60898.0,60897.0,0.04888183]
[1727876760534,0.164214,60896.0,60895.0,0.09766665]
[1727876760800,0.164217,60895.0,60894.0,0.07334864]
[1727876761065,0.164217,60895.0,60894.0,0.04890213]
[1727876761283,0.164217,60895.0,60890.0,0.09930065]
[1727876761284,0.264225,60892.0,60891.0,0.04890213]
[1727876761546,0.264227,60891.0,60890.0,0.001634]
[1727876761770,0.264227,60891.0,60877.0,0.12039209]
[1727876761771,0.023,60890.0,60875.0,0.04890213]
[1727876761982,0.164284,60870.0,60869.0,0.04890213]
[1727876762228,0.164284,60870.0,60862.0,0.164304]
[1727876762229,0.164287,60869.0,60868.0,0.04890213]
[1727876762439,0.1,60883.0,60860.0,0.24622313]
[1727876762660,0.123,60874.0,60862.0,0.04890213]
[1727876762888,0.023,60872.0,60858.0,0.04890213]
[1727876763101,0.123,60872.0,60856.0,0.04890213]
[1727876763322,0.164306,60862.0,60857.0,0.164319]
[1727876763545,0.164306,60862.0,60856.0,0.328644]
[1727876763757,0.123,60872.0,60854.0,0.03301]
[1727876763968,0.123,60872.0,60852.0,0.330297]
[1727876763969,0.123,60872.0,60856.0,0.16432]
[1727876764196,0.328587,60867.0,60854.0,0.164325]
[1727876764432,0.123,60872.0,60866.0,0.164294]
[1727876764433,0.1,60872.0,60866.0,0.164294]
[1727876764652,0.4763,60875.0,60852.0,0.001632]
[1727876764653,0.1,60874.0,60858.0,0.280011]
[1727876764908,0.1842,60884.0,60873.0,0.164274]
[1727876764909,0.164264,60878.0,60873.0,0.164274]
[1727876765118,0.1,60879.0,60873.0,0.164274]
[1727876765362,0.164266,60877.0,60872.0,0.164277]
[1727876765573,0.1,60879.0,60876.0,0.164267]
[1727876765783,0.328499,60883.0,60866.0,0.012]
[1727876765993,0.002,60899.0,60868.0,0.328574]
[1727876765994,0.328493,60884.0,60868.0,0.328574]
[1727876766211,0.328493,60884.0,60864.0,0.11411]
[1727876766212,0.164248,60884.0,60879.0,0.164259]
[1727876766419,0.328479,60887.0,60864.0,0.11411]
[1727876766420,0.9772,60894.0,60873.0,0.004]
[1727876766631,0.02575487,60881.0,60880.0,0.164255]
[1727876767265,0.328454,60892.0,60888.0,0.164235]
[1727876767266,0.164226,60892.0,60888.0,0.164235]
[1727876767557,0.0825,60902.0,60878.0,0.280011]
[1727876767558,0.164239,60887.0,60878.0,0.164261]
[1727876767755,0.328468,60889.0,60877.0,0.32853]
[1727876767965,0.328459,60891.0,60883.0,0.164247]
[1727876768395,0.28037284,60900.0,60880.0,0.03301]
[1727876768396,0.164242,60886.0,60882.0,0.164251]
[1727876768614,0.428414,60899.0,60878.0,0.328521]
[1727876768827,0.164233,60889.0,60888.0,0.006]
[1727876769035,0.164247,60884.0,60880.0,0.164256]
[1727876769282,0.328525,60878.0,60870.0,0.328566]
[1727876769514,0.328525,60878.0,60856.0,0.005]
[1727876769515,0.164284,60871.0,60867.0,0.164291]
[1727876769744,0.328546,60875.0,60858.0,0.05014532]
[1727876769973,0.164277,60873.0,60869.0,0.164285]
[1727876770193,0.16427,60876.0,60871.0,0.328561]
[1727876770429,0.16427,60876.0,60862.0,0.28037284]
[1727876770430,0.02575676,60876.0,60875.0,0.164271]
[1727876771084,0.02575676,60876.0,60875.0,0.197281]
[1727876771342,0.02575676,60876.0,60875.0,0.276081]
[1727876771568,0.1803,60907.0,60892.0,0.03301]
[1727876771818,0.0788,60913.0,60892.0,0.03301]
[1727876772038,0.4763,60922.0,60902.0,0.03301]
[1727876772277,0.328256,60929.0,60903.0,0.03301]
[1727876772513,0.328256,60929.0,60901.0,0.68757084]
[1727876772514,0.164169,60913.0,60908.0,0.164181]
[1727876772743,0.28037284,60930.0,60901.0,0.0788]
[1727876772744,0.28037284,60930.0,60917.0,0.164156]
[1727876772989,0.28037284,60930.0,60901.0,0.35917284]
[1727876772990,0.164157,60917.0,60912.0,0.164169]
[1727876773192,0.164156,60918.0,60913.0,0.164168]
[1727876773435,0.28037284,60925.0,60901.0,0.0788]
[1727876773659,0.28037284,60915.0,60892.0,0.003]
[1727876773887,0.164159,60917.0,60912.0,0.16417]
[1727876774116,0.164159,60917.0,60902.0,0.328395]
[1727876774117,0.328316,60917.0,60902.0,0.328395]
[1727876774332,0.2591,60936.0,60884.0,0.1817]
[1727876774333,0.164182,60908.0,60904.0,0.16419]
[1727876774554,0.1,60919.0,60890.0,0.1]
[1727876774555,0.328332,60914.0,60890.0,0.1]
[1727876774773,0.16417,60913.0,60908.0,0.164182]
[1727876774989,0.164158,60917.0,60913.0,0.164167]
[1727876775240,0.1,60919.0,60906.0,0.328371]
[1727876775454,0.164161,60916.0,60911.0,0.164171]
[1727876775669,0.32831,60918.0,60911.0,0.164171]
[1727876775885,0.002,60930.0,60899.0,0.47512661]
[1727876775886,0.328259,60928.0,60899.0,0.03301]
[1727876776117,0.4763,60937.0,60915.0,0.328325]
[1727876776346,0.002,60939.0,60915.0,0.328325]
[1727876776347,0.328252,60929.0,60915.0,0.328325]
[1727876776592,0.0819,60946.0,60916.0,0.03301]
[1727876776841,0.0819,60946.0,60935.0,0.164108]
[1727876776842,0.164099,60939.0,60935.0,0.164108]
[1727876777072,0.6653,60948.0,60936.0,0.164105]
[1727876777073,0.164093,60941.0,60936.0,0.164105]
[1727876777300,0.328931,60955.0,60922.0,0.03301]
[1727876777301,0.164079,60946.0,60922.0,0.03301]
[1727876777516,0.328119,60954.0,60942.0,0.164088]
[1727876777783,0.328119,60954.0,60927.0,0.00328181]
[1727876778008,0.000818,60946.0,60942.0,0.16409]
[1727876778236,0.000818,60946.0,60926.0,0.1]
[1727876778237,0.000818,60946.0,60945.0,0.164082]
[1727876779136,0.000818,60946.0,60945.0,0.197092]
[1727876779797,0.000818,60946.0,60945.0,0.31437309]
[1727876780234,0.000818,60946.0,60945.0,0.311092]
[1727876781428,0.000818,60946.0,60945.0,0.211092]
[1727876781664,0.164085,60944.0,60943.0,0.03301]
[1727876781890,0.000818,60946.0,60942.0,0.008]
[1727876781891,0.164087,60943.0,60942.0,0.008]
[1727876782100,0.000818,60946.0,60935.0,0.164108]
[1727876782325,0.000818,60946.0,60945.0,0.014]
[1727876782546,0.164899,60946.0,60945.0,0.028]
[1727876782768,0.000818,60946.0,60945.0,0.014]
[1727876783218,0.000818,60946.0,60945.0,0.164082]
[1727876783646,0.000818,60946.0,60945.0,0.173082]
[1727876783861,0.000818,60946.0,60945.0,0.205992]
[1727876784078,0.000818,60946.0,60945.0,0.173082]
[1727876784345,0.000817,60955.0,60954.0,0.60617461]
[1727876784998,0.000817,60955.0,60954.0,0.63908461]
[1727876785694,0.000817,60955.0,60954.0,0.73908461]
[1727876786138,0.000817,60955.0,60954.0,0.76208461]
[1727876786354,0.000817,60955.0,60954.0,0.74808461]
[1727876786574,0.000817,60955.0,60954.0,0.75308461]
[1727876788061,0.000817,60955.0,60954.0,0.210968]
[1727876788286,0.000817,60955.0,60954.0,0.224968]
[1727876788562,0.0002,60959.0,60956.0,0.03291]
[1727876788780,0.0002,60959.0,60958.0,0.196957]
[1727876789216,0.0002,60959.0,60958.0,0.63907361]
[1727876789484,0.0002,60959.0,60958.0,0.73907361]